bitfinex/quotes_SOLUSD_20250903
["timestamp","ask_amount","ask_price","bid_price","bid_amount"]
[1756921504936,0.71,210.82,210.74,2.97248857]
[1756921505251,2.97248857,210.8,210.75,0.72]
[1756921505547,3.68248857,210.8,210.75,0.72]
[1756921505753,2.97248857,210.8,210.76,0.72]
[1756921506054,26.71,210.82,210.76,8.43703206]
[1756921506247,2.97248857,210.8,210.74,8.43753535]
[1756921506852,0.71,210.79,210.69,0.72]
[1756921507050,2.97248857,210.75,210.7,0.72]
[1756921507252,2.97248857,210.77,210.71,2.97248857]
[1756921507455,2.97248857,210.78,210.72,3.69248857]
[1756921507749,2.97248857,210.78,210.73,3.69248857]
[1756921508054,2.97248857,210.8,210.76,4.74473334]
[1756921508355,2.97248857,210.79,210.74,5.46495901]
[1756921508560,2.97248857,210.79,210.74,4.74495901]
[1756921508852,2.97248857,210.8,210.75,0.72]
[1756921509054,2.97248857,210.81,210.76,0.72]
[1756921509251,5.45350939,210.82,210.74,8.43744758]
[1756921509453,2.97248857,210.8,210.74,8.43744758]
[1756921509754,0.71,210.82,210.75,14.31559401]
[1756921509961,26.0,210.83,210.78,2.97248857]
[1756921510171,2.97248857,210.83,210.79,0.72]
[1756921510361,0.06,210.84,210.78,2.97248857]
[1756921510656,0.06,210.84,210.8,0.72]
[1756921510875,0.06,210.84,210.81,3.69248857]
[1756921511162,0.06,210.84,210.82,21.31142659]
[1756921511460,0.06,210.84,210.82,22.03142659]
[1756921511764,0.06,210.84,210.8,4.74361887]
[1756921511953,2.97248857,210.83,210.78,41.62406234]
[1756921512148,2.97248857,210.83,210.78,0.66]
[1756921512353,2.97248857,210.81,210.76,16.56808258]
[1756921512550,2.97248857,210.81,210.77,0.66]
[1756921512749,2.97248857,210.8,210.76,4.74473334]
[1756921512964,2.97248857,210.81,210.76,5.40473334]
[1756921513266,2.97248857,210.79,210.74,4.74500782]
[1756921513439,2.97248857,210.79,210.75,0.66]
[1756921513844,5.45349192,210.82,210.75,0.66]
[1756921514141,2.97248857,210.8,210.75,0.66]
[1756921514752,2.97248857,210.79,210.74,7.71749639]
[1756921514947,0.71,210.78,210.74,13.59559401]
[1756921515151,28.97248857,210.79,210.74,13.59559401]
[1756921515340,0.71,210.78,210.74,13.59559401]
[1756921515537,0.71,210.78,210.72,37.54]
[1756921515538,3.68248857,210.78,210.72,0.66]
[1756921515761,3.68248857,210.77,210.71,44.59816137]
[1756921515956,2.97248857,210.76,210.7,0.66]
[1756921516164,2.97248857,210.74,210.68,13.59559401]
[1756921516371,2.97248857,210.74,210.59,56.79860381]
[1756921516372,2.97248857,210.71,210.64,0.66]
[1756921516569,2.97248857,210.69,210.63,4.74766177]
[1756921516864,2.97248857,210.69,210.63,7.72015034]
[1756921517067,2.97248857,210.69,210.63,8.38015034]
[1756921517368,3.68248857,210.7,210.64,2.97248857]
[1756921517695,26.0,210.7,210.65,2.97248857]
[1756921517866,26.0,210.7,210.67,2.97248857]
[1756921518060,28.97248857,210.74,210.69,2.97248857]
[1756921518257,0.71,210.73,210.67,0.66]
[1756921518453,0.71,210.73,210.68,2.97248857]
[1756921518672,26.0,210.73,210.69,0.66]
[1756921518862,2.97248857,210.74,210.69,5.40624721]
[1756921519066,3.68248857,210.73,210.67,2.97248857]
[1756921519268,2.97248857,210.71,210.66,3.63248857]
[1756921519565,3.68248857,210.73,210.67,3.63248857]
[1756921519779,3.68248857,210.73,210.67,2.97248857]
[1756921519959,2.97248857,210.72,210.67,2.97248857]
[1756921520160,2.97248857,210.71,210.65,17.22808258]
[1756921520554,2.97248857,210.69,210.62,50.53559401]
[1756921520749,2.97248857,210.69,210.63,8.37993515]
[1756921521053,2.97248857,210.7,210.65,2.97248857]
[1756921521262,26.0,210.69,210.65,3.63248857]
[1756921521646,28.97248857,210.7,210.62,13.59559401]
[1756921521850,28.97248857,210.7,210.55,48.46770979]
[1756921521851,26.0,210.67,210.59,0.66]
[1756921522081,26.0,210.67,210.56,50.53559401]
[1756921522290,0.71,210.66,210.58,13.59559401]
[1756921522453,0.71,210.65,210.58,13.59559401]
[1756921522647,0.71,210.65,210.59,2.97248857]
[1756921522867,0.71,210.65,210.6,2.97248857]
[1756921523180,26.0,210.66,210.63,2.97248857]
[1756921523378,2.97248857,210.69,210.62,13.59559401]
[1756921523379,2.97248857,210.67,210.62,13.59559401]
[1756921523562,3.68248857,210.67,210.62,13.59559401]
[1756921523877,0.71,210.67,210.61,2.97248857]
[1756921524372,3.68248857,210.67,210.61,2.97248857]
[1756921524864,4.74587637,210.71,210.62,7.72037576]
[1756921525066,2.97248857,210.67,210.62,4.74788719]
[1756921525266,2.97248857,210.65,210.59,21.31645043]
[1756921525462,0.71,210.66,210.59,4.74836785]
[1756921525662,2.97248857,210.64,210.59,7.72085642]
[1756921525862,0.71,210.66,210.6,3.63248857]
[1756921526072,0.71,210.66,210.61,13.59559401]
[1756921526270,0.71,210.65,210.6,3.63248857]
[1756921526474,0.71,210.65,210.6,0.66]
[1756921526664,3.68248857,210.65,210.6,13.59559401]
[1756921526859,0.71,210.64,210.56,36.94]
[1756921527163,0.71,210.64,210.6,13.59559401]
[1756921527164,26.0,210.64,210.6,13.59559401]
[1756921527475,26.0,210.64,210.61,3.63248857]
[1756921527872,0.71,210.71,210.63,2.97248857]
[1756921528076,0.71,210.73,210.65,2.97248857]
[1756921528257,2.97248857,210.71,210.65,0.66]
[1756921528459,28.97248857,210.72,210.66,2.97248857]
[1756921528768,2.97248857,210.74,210.69,4.74630974]
[1756921528964,2.97248857,210.75,210.7,0.66]
[1756921529167,0.71,210.76,210.7,3.63248857]
[1756921529372,2.97248857,210.76,210.71,13.59559401]
[1756921529583,0.71,210.75,210.71,16.56808258]
[1756921529965,0.71,210.77,210.71,16.56808258]
[1756921530165,3.68248857,210.77,210.71,16.56808258]
[1756921530583,2.97248857,210.76,210.7,16.56808258]
[1756921530769,28.97248857,210.75,210.7,21.31395179]
[1756921530976,26.0,210.75,210.71,0.66]
[1756921531170,26.0,210.75,210.71,3.63248857]
[1756921531589,26.0,210.76,210.71,7.89116968]
[1756921532073,4.74409367,210.79,210.73,20.82676369]
[1756921532074,7.23116968,210.79,210.73,20.82676369]
[1756921532470,0.71,210.82,210.78,7.23116968]
[1756921532692,0.71,210.82,210.79,7.23116968]
[1756921533080,0.71,210.82,210.78,4.7441409]
[1756921533265,26.0,210.81,210.78,11.97531058]
[1756921533882,0.77,210.84,210.79,7.23116968]
[1756921534280,26.0,210.83,210.78,4.7441409]
[1756921534590,33.23116968,210.81,210.71,14.53991715]
[1756921534770,33.23116968,210.81,210.71,25.57261632]
[1756921534771,26.0,210.76,210.71,25.57261632]
[1756921534971,4.74428313,210.78,210.71,11.97702231]
[1756921535169,7.23116968,210.76,210.69,13.59559401]
[1756921535385,0.71,210.76,210.7,7.23116968]
[1756921535584,0.71,210.76,210.71,7.23116968]
[1756921536288,26.0,210.78,210.75,7.23116968]
[1756921536488,26.0,210.78,210.73,13.59559401]
[1756921536666,0.71,210.77,210.74,7.23116968]
[1756921537068,26.0,210.78,210.74,11.97625766]
[1756921537272,0.71,210.77,210.72,4.74547742]
[1756921537488,0.71,210.76,210.7,4.74591169]
[1756921537787,0.71,210.76,210.69,0.66]
[1756921537788,7.23116968,210.73,210.65,5.43719532]
[1756921537997,7.23116968,210.71,210.65,12.008365]
[1756921538290,0.71,210.7,210.65,0.03]
[1756921538492,0.71,210.7,210.65,7.26116968]
[1756921538692,0.71,210.69,210.65,0.03]
[1756921538881,7.94116968,210.69,210.65,0.03]
[1756921539086,33.23116968,210.71,210.65,7.26116968]
[1756921539495,7.23116968,210.72,210.66,7.23116968]
[1756921539671,26.0,210.71,210.68,7.23116968]
[1756921539870,33.23116968,210.75,210.69,7.23116968]
[1756921540207,26.0,210.73,210.7,7.23116968]
[1756921540486,0.71,210.72,210.69,7.23116968]
[1756921540684,26.0,210.73,210.69,11.97745173]
[1756921540990,26.0,210.72,210.69,7.23116968]
[1756921541180,26.0,210.72,210.68,11.97767514]
[1756921541384,26.71,210.72,210.66,4.74678889]
[1756921541575,26.71,210.72,210.68,7.23116968]
[1756921542394,7.23116968,210.7,210.65,0.03]
[1756921542775,7.91116968,210.69,210.65,0.03]
[1756921543187,7.23116968,210.69,210.65,0.03]
[1756921543387,0.68,210.69,210.65,0.03]
[1756921543592,0.68,210.68,210.65,0.03]
[1756921544097,7.23116968,210.68,210.65,0.03]
[1756921544268,0.68,210.68,210.65,0.03]
[1756921544472,0.68,210.67,210.65,0.03]
[1756921544973,26.0,210.68,210.65,0.03]
[1756921545289,26.0,210.67,210.65,0.03]
[1756921547280,0.68,210.67,210.65,0.03]
[1756921548596,7.23116968,210.69,210.65,0.03]
[1756921548980,0.68,210.68,210.65,0.03]
[1756921549590,26.0,210.67,210.65,0.03]
[1756921549797,26.0,210.69,210.66,7.23116968]
[1756921550201,26.0,210.69,210.66,7.93116968]
[1756921550377,26.0,210.69,210.66,7.23116968]
[1756921550704,0.68,210.74,210.68,7.23116968]
[1756921550896,7.23116968,210.76,210.7,7.23116968]
[1756921551091,0.68,210.76,210.71,7.23116968]
[1756921551395,26.0,210.74,210.7,7.23116968]
[1756921551974,0.68,210.75,210.7,7.23116968]
[1756921552190,7.23116968,210.77,210.72,7.23116968]
[1756921552497,0.68,210.76,210.72,7.23116968]
[1756921552702,0.68,210.75,210.7,4.74603543]
[1756921552902,0.68,210.75,210.71,7.23116968]
[1756921553109,26.0,210.77,210.71,7.23116968]
[1756921553276,7.91116968,210.78,210.73,7.23116968]
[1756921553476,0.68,210.77,210.73,7.23116968]
[1756921553976,33.23116968,210.78,210.73,7.23116968]
[1756921554172,0.68,210.77,210.7,4.74603543]
[1756921554376,7.91116968,210.76,210.7,11.97720511]
[1756921554611,30.74441987,210.78,210.7,11.97720511]
[1756921554612,26.0,210.78,210.72,7.23116968]
[1756921554910,26.0,210.78,210.72,11.9766825]
[1756921555223,0.68,210.77,210.72,11.9766825]
[1756921555404,0.68,210.77,210.73,7.23116968]
[1756921555604,26.0,210.78,210.73,7.23116968]
[1756921555789,0.68,210.76,210.72,11.9766825]
[1756921555977,0.68,210.76,210.72,4.74551282]
[1756921556598,0.68,210.76,210.72,11.9766825]
[1756921556894,26.0,210.78,210.73,7.23116968]
[1756921557085,33.23116968,210.78,210.74,4.74518363]
[1756921557284,0.68,210.77,210.73,4.74535733]
[1756921557487,0.06,210.8,210.76,10.68152215]
[1756921557684,0.06,210.8,210.79,10.68152215]
[1756921557897,0.06,210.8,210.78,10.68152215]
[1756921558114,0.06,210.8,210.79,10.68152215]
[1756921559103,0.06,210.8,210.79,16.12558021]
[1756921559298,0.06,210.8,210.79,15.42558021]
[1756921560388,0.06,210.8,210.79,66.82117422]
[1756921561105,1e-08,210.8,210.79,67.10549736]
[1756921561490,1e-08,210.8,210.79,69.0059606]
[1756921562301,1e-08,210.8,210.79,31.9059606]
[1756921562496,1e-08,210.8,210.79,69.0259606]
[1756921563005,1e-08,210.8,210.79,31.9059606]
[1756921563207,1e-08,210.8,210.79,67.10549736]
[1756921563403,1e-08,210.8,210.79,55.43965207]
[1756921563585,1e-08,210.8,210.79,66.12117422]
[1756921563786,1e-08,210.8,210.79,24.27711616]
[1756921563997,1e-08,210.8,210.79,61.39711616]
[1756921565010,1e-08,210.8,210.79,66.14117422]
[1756921565317,1e-08,210.8,210.76,0.7]
[1756921565318,0.68000001,210.8,210.78,37.1]
[1756921565607,0.68,210.79,210.78,37.1]
[1756921566684,11.36152215,210.79,210.73,10.68152215]
[1756921566884,11.36152215,210.79,210.74,37.1]
[1756921567111,0.68,210.78,210.74,37.1]
[1756921567730,0.68,210.77,210.73,10.68152215]
[1756921567909,0.68,210.76,210.74,37.1]
[1756921568207,10.68152215,210.78,210.74,37.1]
[1756921568208,0.68,210.75,210.74,37.1]
[1756921569006,0.68,210.75,210.65,14.32559401]
[1756921569315,11.36152215,210.75,210.69,10.68152215]
[1756921569488,16.10667651,210.75,210.7,37.1]
[1756921569687,0.68,210.74,210.7,37.1]
[1756921570090,0.68,210.74,210.7,47.78152215]
[1756921570322,0.68,210.74,210.7,37.1]
[1756921570614,0.68,210.74,210.7,47.78152215]
[1756921571595,0.68,210.74,210.7,52.52754581]
[1756921571996,26.0,210.76,210.71,10.68152215]
[1756921572207,0.66,210.75,210.7,41.84602366]
[1756921572405,0.66,210.75,210.72,10.68152215]
[1756921573402,26.0,210.76,210.72,10.68152215]
[1756921573990,0.66,210.76,210.71,18.34145324]
[1756921574198,0.66,210.76,210.72,10.68152215]
[1756921574415,11.34152215,210.75,210.7,37.13]
[1756921574610,11.34152215,210.75,210.7,47.81152215]
[1756921575215,10.68152215,210.75,210.7,47.81152215]
[1756921575388,0.66,210.74,210.7,47.81152215]
[1756921575802,37.34152215,210.76,210.7,52.55760584]
[1756921576003,26.0,210.76,210.73,10.68152215]
[1756921576400,0.66,210.75,210.71,10.68152215]
[1756921576596,0.66,210.74,210.71,10.68152215]
[1756921576992,0.66,210.73,210.7,37.13]
[1756921578132,11.34152215,210.72,210.7,0.03]
[1756921578295,10.68152215,210.71,210.7,0.03]
[1756921578710,11.34152215,210.71,210.7,0.03]
[1756921579318,16.08738138,210.71,210.7,0.03]
[1756921579525,16.37170452,210.71,210.7,0.03]
[1756921580099,5.69018237,210.71,210.7,0.03]
[1756921580303,16.37170452,210.71,210.7,0.03]
[1756921581295,5.69018237,210.71,210.7,0.03]
[1756921581498,16.37170452,210.71,210.7,0.03]
[1756921583707,16.08738138,210.71,210.7,0.03]
[1756921586805,4.7455735,210.73,210.7,0.03]
[1756921587006,26.0,210.71,210.7,0.03]
[1756921587443,0.66,210.75,210.7,0.03]
[1756921587609,10.68152215,210.76,210.71,0.67]
[1756921587926,26.0,210.73,210.71,0.67]
[1756921588132,10.68152215,210.76,210.71,0.67]
[1756921588421,26.0,210.73,210.71,0.67]
[1756921589030,11.34152215,210.79,210.72,11.35152215]
[1756921589230,1e-08,210.8,210.74,10.68152215]
[1756921589534,26.0,210.77,210.74,10.68152215]
[1756921589733,10.68152216,210.8,210.74,11.35152215]
[1756921590128,1e-08,210.8,210.76,10.68152215]
[1756921590329,1e-08,210.8,210.76,11.35152215]
[1756921590523,1e-08,210.8,210.77,11.35152215]
[1756921590728,1e-08,210.8,210.79,29.02117422]
[1756921591260,1e-08,210.8,210.79,29.69117422]
[1756921592641,0.06,210.83,210.8,13.87991715]
[1756921592828,0.06,210.83,210.82,10.68152215]
[1756921593026,0.06,210.84,210.83,13.87991715]
[1756921593222,1.90046323,210.98,210.83,25.2314393]
[1756921593223,11.34152215,210.97,210.83,25.2314393]
[1756921593415,11.34152215,210.97,210.86,24.5614393]
[1756921593615,11.34152215,210.97,210.86,62.4114393]
[1756921593815,37.34152215,210.97,210.86,62.4114393]
[1756921594241,26.66,210.97,210.86,62.4114393]
[1756921594640,0.66,210.97,210.86,62.4114393]
[1756921594830,0.66,210.97,210.86,67.15392246]
[1756921595147,26.0,210.95,210.86,67.15392246]
[1756921596023,0.66,210.97,210.86,67.15392246]
[1756921596222,26.0,210.95,210.86,67.15392246]
[1756921597018,26.66,210.97,210.87,13.87991715]
[1756921597348,0.66,211.0,210.89,13.87991715]
[1756921597655,0.72,211.01,210.98,10.68152215]
[1756921597843,0.66,211.0,210.96,10.68152215]
[1756921598155,0.66,210.99,210.96,10.68152215]
[1756921598343,0.66,210.99,210.96,47.80152215]
[1756921598535,0.06,211.01,210.96,47.80152215]
[1756921598739,0.66,211.0,210.96,47.80152215]
[1756921598961,0.66,211.0,210.96,15.42174666]
[1756921599462,0.66,211.0,210.93,0.67]
[1756921599463,0.66,211.0,210.97,10.68152215]
[1756921599752,0.66,211.0,210.97,47.78152215]
[1756921599934,0.66,211.0,210.97,10.68152215]
[1756921600323,0.66,211.0,210.97,37.1]
[1756921600650,0.66,210.99,210.97,37.1]
[1756921600851,0.66,210.99,210.96,10.68152215]
[1756921601055,0.66,210.99,210.97,47.78152215]
[1756921601360,11.34152215,210.98,210.95,37.08]
[1756921601523,11.34152215,210.97,210.95,37.08]
[1756921601723,0.67,210.96,210.95,37.08]
[1756921602453,0.67,210.96,210.93,10.68152215]
[1756921602627,0.67,210.95,210.93,37.1]
[1756921602825,0.67,210.95,210.9,4.74155554]
[1756921603046,0.67,210.95,210.93,10.68152215]
[1756921603254,0.67,210.97,210.93,10.68152215]
[1756921603430,0.67,210.96,210.93,10.68152215]
[1756921603852,0.67,210.96,210.93,47.76152215]
[1756921604056,0.67,210.95,210.93,10.68152215]
[1756921604266,0.67,210.98,210.94,10.68152215]
[1756921604452,26.0,211.0,210.94,10.68152215]
[1756921604453,0.67,210.97,210.94,10.68152215]
[1756921604755,0.67,210.96,210.93,37.06]
[1756921605149,0.67,210.96,210.93,10.68152215]
[1756921605337,0.67,210.96,210.93,37.06]
[1756921605861,0.67,210.95,210.93,37.06]
[1756921606069,0.67,210.95,210.89,0.67]
[1756921606238,0.67,210.95,210.92,10.68152215]
[1756921606444,0.67,210.95,210.92,47.74152215]
[1756921607671,0.73,211.01,210.94,10.68152215]
[1756921607840,0.73,211.01,210.98,10.68152215]
[1756921608168,0.06,211.01,210.98,10.68152215]
[1756921608375,0.06,211.01,211.0,10.68152215]
[1756921608841,0.06,211.01,211.0,11.35152215]
[1756921609046,0.06,211.01,211.0,10.68152215]
[1756921610666,0.06,211.01,210.99,10.68152215]
[1756921610975,0.06,211.01,210.98,47.76152215]
[1756921611158,0.73,211.01,210.98,47.76152215]
[1756921611877,0.06,211.01,210.98,47.76152215]
[1756921612171,0.06,211.01,210.99,10.68152215]
[1756921613954,0.73,211.01,210.98,37.08]
[1756921614369,0.73,211.01,210.95,5.41025273]
[1756921614370,0.67,211.0,210.95,10.68152215]
[1756921614677,11.35152215,210.99,210.95,37.06]
[1756921614853,10.68152215,210.96,210.95,37.06]
[1756921615184,11.35152215,210.96,210.92,37.08]
[1756921615347,0.67,210.95,210.92,37.08]
[1756921615549,0.67,210.94,210.92,37.08]
[1756921615754,5.41071391,210.94,210.9,10.68152215]
[1756921615948,0.67,210.93,210.91,37.08]
[1756921617360,0.67,210.92,210.91,37.08]
[1756921618079,15.42223606,210.94,210.91,37.08]
[1756921618381,0.67,210.93,210.91,37.08]
[1756921618684,0.67,210.94,210.91,37.08]
[1756921618846,26.0,210.93,210.91,37.08]
[1756921621070,26.0,210.93,210.91,44.96899447]
[1756921621283,26.0,210.93,210.91,37.75]
[1756921621464,0.67,210.96,210.91,37.08]
[1756921621664,26.0,210.94,210.91,37.08]
[1756921621875,0.67,210.96,210.91,37.08]
[1756921621876,7.21899447,210.97,210.91,41.82124599]
[1756921622070,7.88899447,210.98,210.93,7.21899447]
[1756921622373,0.67,210.97,210.93,7.21899447]
[1756921622691,0.67,210.97,210.91,42.49124599]
[1756921622692,0.06,211.01,210.96,7.21899447]
[1756921622880,0.06,211.01,210.97,7.21899447]
[1756921623180,26.0,210.99,210.97,7.21899447]
[1756921623478,31.46916436,211.01,210.97,7.21899447]
[1756921623781,0.67,211.0,210.97,7.21899447]
[1756921623951,0.06,211.01,210.98,7.88899447]
[1756921624259,26.06,211.01,210.99,7.21899447]
[1756921624458,26.06,211.01,210.99,44.27899447]
[1756921625057,26.06,211.01,211.0,7.21899447]
[1756921625058,0.06,211.01,211.0,7.21899447]
[1756921625879,0.06,211.01,211.0,7.88899447]
[1756921626060,0.06,211.01,211.0,12.62833096]
[1756921626256,0.06,211.01,211.0,5.40933649]
[1756921626456,0.06,211.01,211.0,12.62833096]
[1756921627082,0.06,211.01,210.99,37.06]
[1756921627379,0.06,211.01,211.0,21.48458848]
[1756921627761,0.06,211.01,211.0,19.0049305]
[1756921627962,0.06,211.01,211.0,44.33899447]
[1756921628151,0.06,211.01,211.0,37.12]
[1756921628357,0.06,211.01,211.0,44.33899447]
[1756921629158,0.06,211.01,211.0,45.00899447]
[1756921629361,0.06,211.01,211.0,58.60458848]
[1756921629760,0.06,211.01,211.0,63.34392497]
[1756921630076,0.06,211.01,211.0,56.1249305]
[1756921630301,0.06,211.01,211.0,63.34392497]
[1756921631263,0.06,211.01,211.0,37.7]
[1756921631487,0.06,211.01,211.0,44.91899447]
[1756921631786,0.06,211.01,211.0,37.7]
[1756921631985,0.06,211.01,211.0,44.89899447]
[1756921632159,0.06,211.01,210.99,7.21899447]
[1756921632355,0.06,211.01,211.0,37.68]
[1756921632356,0.74,211.01,211.0,37.68]
[1756921633295,0.74,211.01,210.98,7.21899447]
[1756921633464,0.68,211.0,210.95,13.59559401]
[1756921633794,0.68,210.99,210.96,37.66]
[1756921634285,0.68,210.98,210.97,37.66]
[1756921634456,0.68,211.0,210.97,37.66]
[1756921634662,0.68,210.99,210.97,37.66]
[1756921635793,30.79917211,211.01,210.97,37.66]
[1756921635794,0.68,210.98,210.97,37.66]
[1756921635965,0.68,210.98,210.96,37.64]
[1756921636164,7.21899447,210.99,210.96,37.64]
[1756921636376,0.68,210.98,210.96,37.64]
[1756921636969,26.06,211.01,210.96,37.64]
[1756921637175,7.89899447,211.0,210.96,37.64]
[1756921637380,0.68,211.0,210.96,37.64]
[1756921637803,7.89899447,210.99,210.96,37.64]
[1756921638095,0.68,210.98,210.96,37.64]
[1756921638784,7.21899447,210.99,210.94,7.21899447]
[1756921638982,0.68,210.97,210.95,37.64]
[1756921639778,0.68,210.96,210.95,37.64]
[1756921639976,33.95899447,211.01,210.95,45.56899447]
[1756921640182,38.69811586,211.01,210.95,45.56899447]
[1756921641278,38.69811586,211.01,210.95,50.30944034]
[1756921642383,38.69811586,211.01,210.95,44.85899447]
[1756921643379,33.95899447,211.01,210.95,44.85899447]
[1756921643578,0.74,211.01,210.97,2.96849768]
[1756921643784,0.06,211.01,210.98,38.29]
[1756921643985,0.06,211.01,210.99,37.58]
[1756921644691,0.74,211.01,210.99,37.58]
[1756921644988,0.06,211.01,210.99,37.58]
[1756921645380,0.68,211.0,210.99,37.58]
[1756921645586,0.06,211.01,210.99,37.58]
[1756921646170,0.68,211.0,210.99,37.58]
[1756921646377,0.06,211.01,210.99,37.58]
[1756921646690,0.06,211.01,210.99,38.29]
[1756921646880,0.06,211.01,210.99,37.58]
[1756921648593,3.64849768,211.0,210.92,0.71]
[1756921648891,3.64849768,211.0,210.94,2.96849768]
[1756921649067,3.02849768,211.01,210.95,3.67849768]
[1756921649264,0.06,211.01,210.96,40.52849768]
[1756921649469,0.68,211.0,210.96,40.52849768]
[1756921649891,0.68,211.0,210.96,37.56]
[1756921650073,0.68,211.0,210.96,40.52849768]
[1756921651291,4.7991618,211.01,210.96,40.52849768]
[1756921651482,0.74,211.01,210.96,41.23849768]
[1756921651795,3.70849768,211.01,210.96,41.23849768]
[1756921652576,0.68,211.0,210.96,37.56]
[1756921652989,0.06,211.01,210.97,3.67849768]
[1756921653186,0.06,211.01,210.98,2.96849768]
[1756921653490,0.06,211.01,210.99,37.52]
[1756921653670,0.74,211.01,210.99,37.52]
[1756921653872,0.06,211.01,210.99,37.52]
[1756921654078,3.70849768,211.01,210.99,37.52]
[1756921654373,0.06,211.01,210.99,37.52]
[1756921654569,0.06,211.01,211.0,3.67849768]
[1756921654792,0.06,211.01,211.0,2.96849768]
[1756921655093,0.74,211.01,210.99,37.5]
[1756921655301,0.68,211.0,210.99,37.5]
[1756921655591,3.02849768,211.01,210.99,37.5]
[1756921655799,0.06,211.01,210.99,37.5]
[1756921656177,0.06,211.01,211.0,0.71]
[1756921656379,0.06,211.01,211.0,3.67849768]
[1756921657882,0.06,211.01,211.0,2.96849768]
[1756921658597,0.06,211.01,211.0,8.41783417]
[1756921659186,0.06,211.01,211.0,22.01342818]
[1756921660276,0.06,211.01,211.0,23.91226751]
[1756921661198,0.06,211.01,211.0,24.19659065]
[1756921662584,1e-08,211.01,211.0,24.19659065]
[1756921663091,0.06,211.04,211.01,13.87991715]
[1756921663290,0.06,211.04,211.03,2.96849768]
[1756921663695,1e-08,211.04,211.03,17.55841483]
[1756921663885,1e-08,211.06,211.05,0.28432314]
[1756921664198,0.06,211.08,211.06,13.87991715]
[1756921664387,0.06,211.08,211.07,66.95240555]
[1756921664900,0.06,211.08,211.07,73.58819869]
[1756921665301,0.06,211.08,211.07,74.15673045]
[1756921665700,0.06,211.08,211.07,74.13673045]
[1756921666788,0.06,211.08,211.07,36.63673045]
[1756921666987,0.06,211.08,211.07,74.11673045]
[1756921667189,0.06,211.13,211.08,13.87991715]
[1756921667383,0.06,211.13,211.1,13.87991715]
[1756921667616,0.06,211.13,211.11,0.28432314]
[1756921667911,1e-08,211.13,211.12,81.03841483]
[1756921668295,1e-08,211.15,211.13,13.87991715]
[1756921668615,0.2,211.23,211.17,13.87991715]
[1756921668795,0.2,211.23,211.17,59.06393597]
[1756921669103,0.2,211.23,211.17,59.77393597]
[1756921670495,0.2,211.23,211.17,61.6710642]
[1756921670890,0.2,211.23,211.19,39.59559401]
[1756921671090,0.2,211.23,211.19,91.91808241]
[1756921671310,0.2,211.23,211.19,92.62808241]
[1756921671512,0.2,211.23,211.19,42.84841483]
[1756921671712,0.2,211.23,211.19,80.02409169]
[1756921671996,0.2,211.23,211.19,16.56409169]
[1756921672400,0.75,211.2,211.19,2.96849768]
[1756921672905,0.75,211.2,211.19,40.40849768]
[1756921673106,0.75,211.2,211.19,37.44]
[1756921673721,0.75,211.2,211.17,16.56409169]
[1756921674020,0.69,211.19,211.18,13.59559401]
[1756921674321,0.06,211.2,211.18,58.73919164]
[1756921674618,0.75,211.2,211.18,58.73919164]
[1756921675021,0.06,211.2,211.18,58.73919164]
[1756921675339,0.75,211.2,211.18,58.73919164]
[1756921675525,0.75,211.2,211.18,55.77069396]
[1756921675695,0.06,211.2,211.18,13.59559401]
[1756921675900,0.69,211.19,211.15,4.73592992]
[1756921676097,3.65849768,211.18,211.14,18.33178619]
[1756921676403,0.69,211.17,211.15,37.4]
[1756921676603,0.69,211.16,211.15,13.59559401]